[Event "*** Titled Tuesday Blitz"]
[Site "Chess.com"]
[Date "2020.05.26"]
[Round "2"]
[White "Atanejhad"]
[Black "annamaja"]
[Result "1-0"]
[WhiteElo "2446"]
[BlackElo "2223"]
[TimeControl "180+1"]
[EndTime "10:16:50 PDT"]
[Termination "Atanejhad won by resignation"]

1. d4 {[%clk 0:02:41.6]} 1... Nf6 {[%clk 0:02:59.9]} 2. c4 {[%clk 0:02:40.8]}
2... e6 {[%clk 0:03:00.3]} 3. Nc3 {[%clk 0:02:41.1]} 3... Bb4 {[%clk 0:03:00.5]}
4. e3 {[%clk 0:02:41.5]} 4... O-O {[%clk 0:03:00.5]} 5. Ne2 {[%clk 0:02:41.9]}
5... d5 {[%clk 0:02:59.4]} 6. a3 {[%clk 0:02:41.8]} 6... Be7 {[%clk 0:02:59]} 7.
Nf4 {[%clk 0:02:40.3]} 7... c6 {[%clk 0:02:51.7]} 8. Bd3 {[%clk 0:02:39.8]} 8...
a5 {[%clk 0:02:48.2]} 9. O-O {[%clk 0:02:35.8]} 9... Na6 {[%clk 0:02:38.2]} 10.
Qe2 {[%clk 0:02:28.6]} 10... dxc4 {[%clk 0:02:30.7]} 11. Bxc4 {[%clk 0:02:28]}
11... b5 {[%clk 0:02:29.7]} 12. Bd3 {[%clk 0:02:27.7]} 12... Bb7 {[%clk
0:02:22.4]} 13. Rd1 {[%clk 0:02:25.1]} 13... b4 {[%clk 0:02:06.3]} 14. Ne4
{[%clk 0:02:16.5]} 14... Nxe4 {[%clk 0:01:50.9]} 15. Bxe4 {[%clk 0:02:17.4]}
15... Qb6 {[%clk 0:01:51.4]} 16. Qf3 {[%clk 0:01:56.9]} 16... f5 {[%clk
0:01:20.3]} 17. Bd3 {[%clk 0:01:50.6]} 17... c5 {[%clk 0:01:19.7]} 18. Qg3
{[%clk 0:01:41.5]} 18... cxd4 {[%clk 0:01:09.8]} 19. Bc4 {[%clk 0:01:38.4]}
19... Rf6 {[%clk 0:00:27]} 20. exd4 {[%clk 0:01:36.2]} 20... Bd6 {[%clk
0:00:19]} 21. Be3 {[%clk 0:01:31.3]} 21... Bxf4 {[%clk 0:00:16]} 22. Qxf4 {[%clk
0:01:28.9]} 22... Qc6 {[%clk 0:00:16.1]} 23. Bf1 {[%clk 0:01:25.7]} 23... Rg6
{[%clk 0:00:16.3]} 24. f3 {[%clk 0:01:11.2]} 24... Rc8 {[%clk 0:00:16.3]} 25.
Rac1 {[%clk 0:01:08.3]} 25... Qd7 {[%clk 0:00:15.7]} 26. Rxc8+ {[%clk 0:01:05]}
26... Qxc8 {[%clk 0:00:16.6]} 27. Rc1 {[%clk 0:01:03.6]} 27... Qd7 {[%clk
0:00:16.9]} 28. Bxa6 {[%clk 0:00:55.1]} 28... Bxa6 {[%clk 0:00:17.1]} 29. Qb8+
{[%clk 0:00:52.9]} 29... Kf7 {[%clk 0:00:16.1]} 30. Rc7 {[%clk 0:00:52.4]} 30...
Ke7 {[%clk 0:00:11.3]} 31. Rxd7+ {[%clk 0:00:51]} 31... Kxd7 {[%clk 0:00:12.2]}
32. Qa7+ {[%clk 0:00:50.7]} 1-0

[Event "*** Titled Tuesday Blitz"]
[Site "Chess.com"]
[Date "2020.05.26"]
[Round "2"]
[White "witcher8"]
[Black "oykuince"]
[Result "1-0"]
[WhiteElo "2366"]
[BlackElo "2012"]
[TimeControl "180+1"]
[EndTime "10:16:50 PDT"]
[Termination "witcher8 won by checkmate"]

1. e4 {[%clk 0:03:00.9]} 1... c5 {[%clk 0:02:59.5]} 2. Nc3 {[%clk 0:02:57.5]}
2... e6 {[%clk 0:02:59.2]} 3. f4 {[%clk 0:02:56.3]} 3... Nc6 {[%clk 0:02:58.9]}
4. Nf3 {[%clk 0:02:56.1]} 4... g6 {[%clk 0:02:59.2]} 5. Bc4 {[%clk 0:02:55.3]}
5... Bg7 {[%clk 0:02:58.7]} 6. f5 {[%clk 0:02:55.3]} 6... d5 {[%clk 0:02:53.2]}
7. exd5 {[%clk 0:02:38.1]} 7... exd5 {[%clk 0:02:53]} 8. Nxd5 {[%clk 0:02:34.3]}
8... Bxf5 {[%clk 0:02:47.9]} 9. O-O {[%clk 0:02:33.9]} 9... Nge7 {[%clk
0:02:30.6]} 10. Nxe7 {[%clk 0:02:23.4]} 10... Nxe7 {[%clk 0:02:29.9]} 11. d3
{[%clk 0:02:10]} 11... O-O {[%clk 0:02:26.8]} 12. Bg5 {[%clk 0:02:08.9]} 12...
h6 {[%clk 0:02:23.8]} 13. Bh4 {[%clk 0:02:08.3]} 13... Qd7 {[%clk 0:02:07.9]}
14. h3 {[%clk 0:01:54.7]} 14... Bxb2 {[%clk 0:01:46.7]} 15. Rb1 {[%clk
0:01:51.5]} 15... Bg7 {[%clk 0:01:47.1]} 16. Re1 {[%clk 0:01:14.7]} 16... g5
{[%clk 0:01:23.4]} 17. Bf2 {[%clk 0:01:13.9]} 17... b6 {[%clk 0:01:22]} 18. Ne5
{[%clk 0:01:04]} 18... Qb7 {[%clk 0:00:48.8]} 19. Qh5 {[%clk 0:00:48.4]} 19...
Nc6 {[%clk 0:00:21.6]} 20. Bd5 {[%clk 0:00:35]} 20... Bxe5 {[%clk 0:00:18.9]}
21. Rxe5 {[%clk 0:00:34.6]} 21... Be6 {[%clk 0:00:16.8]} 22. Qxh6 {[%clk
0:00:25.8]} 22... Bxd5 {[%clk 0:00:15.5]} 23. Rxg5# {[%clk 0:00:25.4]} 1-0

[Event "*** Titled Tuesday Blitz"]
[Site "Chess.com"]
[Date "2020.05.26"]
[Round "2"]
[White "mishikomchedlishvili"]
[Black "Nikolaj_6"]
[Result "1-0"]
[WhiteElo "2838"]
[BlackElo "2535"]
[TimeControl "180+1"]
[EndTime "10:16:51 PDT"]
[Termination "mishikomchedlishvili won by resignation"]

1. d4 {[%clk 0:03:00.9]} 1... Nf6 {[%clk 0:02:59.8]} 2. Bg5 {[%clk 0:02:59.9]}
2... e6 {[%clk 0:02:58.5]} 3. e4 {[%clk 0:02:59.1]} 3... h6 {[%clk 0:02:58.4]}
4. Bxf6 {[%clk 0:02:59.3]} 4... Qxf6 {[%clk 0:02:58.5]} 5. c3 {[%clk 0:02:59.5]}
5... g5 {[%clk 0:02:56.6]} 6. Bd3 {[%clk 0:02:56.7]} 6... d6 {[%clk 0:02:56.4]}
7. Ne2 {[%clk 0:02:56.7]} 7... Bg7 {[%clk 0:02:55.5]} 8. O-O {[%clk 0:02:56.7]}
8... Qe7 {[%clk 0:02:53.4]} 9. f4 {[%clk 0:02:54.5]} 9... Nd7 {[%clk 0:02:49.4]}
10. Nd2 {[%clk 0:02:52.6]} 10... e5 {[%clk 0:02:36]} 11. fxe5 {[%clk 0:02:40.6]}
11... dxe5 {[%clk 0:02:35.9]} 12. Ng3 {[%clk 0:02:38.1]} 12... Nf6 {[%clk
0:02:26.8]} 13. Nf3 {[%clk 0:02:16.5]} 13... exd4 {[%clk 0:02:15.6]} 14. cxd4
{[%clk 0:02:15.8]} 14... O-O {[%clk 0:02:14]} 15. Qb3 {[%clk 0:01:44.4]} 15...
c5 {[%clk 0:02:09.3]} 16. e5 {[%clk 0:01:42.4]} 16... Ng4 {[%clk 0:02:05.6]} 17.
Rae1 {[%clk 0:01:37.4]} 17... cxd4 {[%clk 0:02:02]} 18. Bf5 {[%clk 0:01:24.2]}
18... Ne3 {[%clk 0:01:56.9]} 19. Rxe3 {[%clk 0:01:00.2]} 19... dxe3 {[%clk
0:01:56.3]} 20. Qxe3 {[%clk 0:00:47.2]} 20... Be6 {[%clk 0:01:37.8]} 21. Kh1
{[%clk 0:00:39.5]} 21... Rad8 {[%clk 0:01:29.1]} 22. Bb1 {[%clk 0:00:38.1]}
22... Rfe8 {[%clk 0:00:46.8]} 23. Qe4 {[%clk 0:00:38.1]} 23... f5 {[%clk
0:00:38.5]} 24. exf6 {[%clk 0:00:37.6]} 24... Bxf6 {[%clk 0:00:38.4]} 25. Nh5
{[%clk 0:00:35.6]} 1-0

[Event "*** Titled Tuesday Blitz"]
[Site "Chess.com"]
[Date "2020.05.26"]
[Round "2"]
[White "51616516516"]
[Black "farzadbfd"]
[Result "0-1"]
[WhiteElo "2359"]
[BlackElo "2746"]
[TimeControl "180+1"]
[EndTime "10:16:51 PDT"]
[Termination "farzadbfd won on time"]

1. d4 {[%clk 0:03:00.9]} 1... Nf6 {[%clk 0:02:59.2]} 2. c4 {[%clk 0:03:00.5]}
2... e6 {[%clk 0:02:59.5]} 3. Nc3 {[%clk 0:03:00.2]} 3... Bb4 {[%clk 0:02:59.8]}
4. Qc2 {[%clk 0:02:57.7]} 4... d5 {[%clk 0:02:59.8]} 5. cxd5 {[%clk 0:02:57.3]}
5... exd5 {[%clk 0:02:58.7]} 6. Bg5 {[%clk 0:02:57.5]} 6... h6 {[%clk
0:02:58.6]} 7. Bxf6 {[%clk 0:02:56]} 7... Qxf6 {[%clk 0:02:58.2]} 8. a3 {[%clk
0:02:56.9]} 8... Bxc3+ {[%clk 0:02:57.6]} 9. Qxc3 {[%clk 0:02:57.8]} 9... O-O
{[%clk 0:02:55]} 10. Nf3 {[%clk 0:02:57.7]} 10... Bg4 {[%clk 0:02:51.1]} 11. Ne5
{[%clk 0:02:56.3]} 11... Be6 {[%clk 0:02:40.7]} 12. Qxc7 {[%clk 0:02:49.1]}
12... Nc6 {[%clk 0:02:40.9]} 13. Nxc6 {[%clk 0:02:37.8]} 13... bxc6 {[%clk
0:02:41.8]} 14. e3 {[%clk 0:02:38.1]} 14... Rfb8 {[%clk 0:02:13.5]} 15. Qxc6
{[%clk 0:02:36.2]} 15... Rc8 {[%clk 0:02:06.9]} 16. Qa4 {[%clk 0:02:34.6]} 16...
Qg6 {[%clk 0:02:04.5]} 17. Qd1 {[%clk 0:01:56.7]} 17... Rc2 {[%clk 0:01:47.2]}
18. b4 {[%clk 0:00:59.5]} 18... Rac8 {[%clk 0:01:41.7]} 19. b5 {[%clk
0:00:28.5]} 19... Rb2 {[%clk 0:01:32.2]} 20. Bd3 {[%clk 0:00:10.3]} 20... Qxg2
{[%clk 0:01:30.2]} 21. Rf1 {[%clk 0:00:09.8]} 21... Bg4 {[%clk 0:00:41.8]} 22.
Rc1 {[%clk 0:00:10.1]} 22... Re8 {[%clk 0:00:40.3]} 23. Qa4 {[%clk 0:00:05.1]}
23... Rxe3+ {[%clk 0:00:39.4]} 0-1

[Event "*** Titled Tuesday Blitz"]
[Site "Chess.com"]
[Date "2020.05.26"]
[Round "2"]
[White "Onischuk_V"]
[Black "valeriocarnicelli"]
[Result "1-0"]
[WhiteElo "2901"]
[BlackElo "2563"]
[TimeControl "180+1"]
[EndTime "10:16:56 PDT"]
[Termination "Onischuk_V won by resignation"]

1. e4 {[%clk 0:02:58.1]} 1... e5 {[%clk 0:02:59.3]} 2. Nf3 {[%clk 0:02:57.8]}
2... Nc6 {[%clk 0:02:59.4]} 3. Bb5 {[%clk 0:02:57.6]} 3... f5 {[%clk 0:02:59.5]}
4. Nc3 {[%clk 0:02:55.4]} 4... fxe4 {[%clk 0:02:57]} 5. Nxe4 {[%clk 0:02:55.6]}
5... Nf6 {[%clk 0:02:57.5]} 6. Qe2 {[%clk 0:02:53.1]} 6... d5 {[%clk 0:02:57.2]}
7. Nxf6+ {[%clk 0:02:52.6]} 7... gxf6 {[%clk 0:02:57.7]} 8. Nd4 {[%clk
0:02:41.2]} 8... Qd6 {[%clk 0:01:56.1]} 9. Qh5+ {[%clk 0:02:37.5]} 9... Kd8
{[%clk 0:01:56.1]} 10. Nxc6+ {[%clk 0:02:36.9]} 10... bxc6 {[%clk 0:01:55.9]}
11. Be2 {[%clk 0:02:37]} 11... Bd7 {[%clk 0:01:47.3]} 12. O-O {[%clk 0:02:34.6]}
12... Be7 {[%clk 0:01:38.7]} 13. d4 {[%clk 0:02:08.9]} 13... Rb8 {[%clk
0:01:35.6]} 14. b3 {[%clk 0:02:03]} 14... c5 {[%clk 0:01:27.9]} 15. dxe5 {[%clk
0:01:56.4]} 15... fxe5 {[%clk 0:01:26.9]} 16. Bb2 {[%clk 0:01:46.6]} 16... d4
{[%clk 0:01:26.5]} 17. Bd3 {[%clk 0:01:44.6]} 17... Bc6 {[%clk 0:01:25.3]} 18.
Rae1 {[%clk 0:01:41]} 18... Bf6 {[%clk 0:01:17.3]} 19. Bc1 {[%clk 0:01:38.9]}
19... Kc8 {[%clk 0:01:07.5]} 20. f4 {[%clk 0:01:25.5]} 20... Rg8 {[%clk
0:01:02.6]} 21. Rf2 {[%clk 0:01:23.8]} 21... Kb7 {[%clk 0:00:17.5]} 22. fxe5
{[%clk 0:01:20.4]} 22... Qe7 {[%clk 0:00:17.8]} 23. Be4 {[%clk 0:00:54.1]} 23...
Bg5 {[%clk 0:00:17]} 24. Bxc6+ {[%clk 0:00:51.5]} 24... Kxc6 {[%clk 0:00:17.2]}
25. Rf7 {[%clk 0:00:46.9]} 25... Qe6 {[%clk 0:00:14.9]} 26. Bxg5 {[%clk
0:00:45.5]} 26... Rxg5 {[%clk 0:00:15]} 27. Qf3+ {[%clk 0:00:32]} 27... Kb6
{[%clk 0:00:14.4]} 28. Rf6 {[%clk 0:00:31.6]} 1-0

[Event "*** Titled Tuesday Blitz"]
[Site "Chess.com"]
[Date "2020.05.26"]
[Round "2"]
[White "keepitcool9499"]
[Black "Shivagami"]
[Result "1-0"]
[WhiteElo "2430"]
[BlackElo "2201"]
[TimeControl "180+1"]
[EndTime "10:16:56 PDT"]
[Termination "keepitcool9499 won by resignation"]

1. d4 {[%clk 0:03:00.9]} 1... Nf6 {[%clk 0:02:59.5]} 2. c4 {[%clk 0:02:56.1]}
2... c5 {[%clk 0:02:58.7]} 3. d5 {[%clk 0:02:55.1]} 3... e6 {[%clk 0:02:59]} 4.
Nc3 {[%clk 0:02:53.8]} 4... exd5 {[%clk 0:02:58.8]} 5. cxd5 {[%clk 0:02:54.7]}
5... g6 {[%clk 0:02:53.9]} 6. e4 {[%clk 0:02:52.4]} 6... d6 {[%clk 0:02:53.2]}
7. Nf3 {[%clk 0:02:46.1]} 7... a6 {[%clk 0:02:52.7]} 8. a4 {[%clk 0:02:41.1]}
8... Bg7 {[%clk 0:02:52.7]} 9. h3 {[%clk 0:02:32]} 9... O-O {[%clk 0:02:51.2]}
10. Bd3 {[%clk 0:02:31.4]} 10... Nbd7 {[%clk 0:02:50]} 11. O-O {[%clk
0:02:28.4]} 11... Ne8 {[%clk 0:02:46.2]} 12. Re1 {[%clk 0:02:23.3]} 12... Qc7
{[%clk 0:02:43.9]} 13. Bg5 {[%clk 0:02:18.1]} 13... Rb8 {[%clk 0:02:32.2]} 14.
Be7 {[%clk 0:02:15.2]} 14... c4 {[%clk 0:02:26.9]} 15. Bf1 {[%clk 0:02:09.1]}
15... b5 {[%clk 0:02:26.2]} 16. axb5 {[%clk 0:02:06]} 16... axb5 {[%clk
0:02:22.1]} 17. Bxf8 {[%clk 0:02:04.7]} 17... Kxf8 {[%clk 0:02:17.4]} 18. Qd2
{[%clk 0:02:00.2]} 18... b4 {[%clk 0:02:11.6]} 19. Na4 {[%clk 0:01:53.9]} 19...
Ba6 {[%clk 0:01:55.7]} 20. Nd4 {[%clk 0:01:45.9]} 20... Ne5 {[%clk 0:00:28.5]}
21. Rac1 {[%clk 0:01:28.5]} 21... Qa5 {[%clk 0:00:21.7]} 22. Ra1 {[%clk
0:01:11.9]} 22... Nc7 {[%clk 0:00:15.2]} 23. f4 {[%clk 0:01:08.6]} 23... Nd3
{[%clk 0:00:14.8]} 24. Nc6 {[%clk 0:01:00.5]} 24... Qb5 {[%clk 0:00:11.6]} 25.
Bxd3 {[%clk 0:00:55.5]} 25... cxd3 {[%clk 0:00:10.1]} 26. Nxb8 {[%clk
0:00:53.4]} 26... Qxb8 {[%clk 0:00:11]} 27. Kh1 {[%clk 0:00:47.6]} 27... Qa7
{[%clk 0:00:09]} 28. Qxb4 {[%clk 0:00:44.6]} 1-0

[Event "*** Titled Tuesday Blitz"]
[Site "Chess.com"]
[Date "2020.05.26"]
[Round "2"]
[White "czasnaszachy"]
[Black "Arjun2002"]
[Result "0-1"]
[WhiteElo "2375"]
[BlackElo "2666"]
[TimeControl "180+1"]
[EndTime "10:16:57 PDT"]
[Termination "Arjun2002 won on time"]

1. d4 {[%clk 0:03:00.9]} 1... d5 {[%clk 0:02:58.8]} 2. c4 {[%clk 0:03:00.3]}
2... c6 {[%clk 0:02:57.6]} 3. cxd5 {[%clk 0:03:00]} 3... cxd5 {[%clk 0:02:58.5]}
4. Nc3 {[%clk 0:03:00.6]} 4... Nf6 {[%clk 0:02:56.1]} 5. Bf4 {[%clk 0:03:01]}
5... Nc6 {[%clk 0:02:55.6]} 6. e3 {[%clk 0:03:01.1]} 6... Bg4 {[%clk 0:02:55.2]}
7. f3 {[%clk 0:03:00.4]} 7... Bd7 {[%clk 0:02:55.1]} 8. a3 {[%clk 0:02:59.4]}
8... e6 {[%clk 0:02:55.1]} 9. Bd3 {[%clk 0:02:59.4]} 9... Nh5 {[%clk 0:02:54.8]}
10. Bg3 {[%clk 0:02:58.9]} 10... Nxg3 {[%clk 0:02:52.4]} 11. hxg3 {[%clk
0:02:59.2]} 11... g6 {[%clk 0:02:52.9]} 12. Nge2 {[%clk 0:02:59.2]} 12... Bg7
{[%clk 0:02:52.8]} 13. Rc1 {[%clk 0:02:35.5]} 13... O-O {[%clk 0:02:51.7]} 14.
Bb1 {[%clk 0:01:56.9]} 14... Rc8 {[%clk 0:02:49.1]} 15. Na4 {[%clk 0:01:34.5]}
15... b6 {[%clk 0:02:41.4]} 16. Nac3 {[%clk 0:01:29.6]} 16... Na5 {[%clk
0:02:37.9]} 17. O-O {[%clk 0:01:20.9]} 17... Nc4 {[%clk 0:02:37.4]} 18. Kf2
{[%clk 0:00:46.5]} 18... Nxb2 {[%clk 0:02:29.3]} 19. Qb3 {[%clk 0:00:46.5]}
19... Nc4 {[%clk 0:02:29.5]} 20. Rfd1 {[%clk 0:00:42.9]} 20... Qe7 {[%clk
0:02:26.1]} 21. Bd3 {[%clk 0:00:41.8]} 21... Na5 {[%clk 0:02:17.9]} 22. Qb2
{[%clk 0:00:39.2]} 22... Rfd8 {[%clk 0:02:02.9]} 23. Rc2 {[%clk 0:00:38.6]}
23... Bf8 {[%clk 0:01:52.2]} 24. a4 {[%clk 0:00:33.3]} 24... Qa3 {[%clk
0:01:49]} 25. Qb1 {[%clk 0:00:17.1]} 25... Qb4 {[%clk 0:01:18.7]} 26. Qa1 {[%clk
0:00:09.8]} 26... Nc4 {[%clk 0:01:09.8]} 27. Bxc4 {[%clk 0:00:07.2]} 27... Rxc4
{[%clk 0:01:08.9]} 28. Rdc1 {[%clk 0:00:06.6]} 28... Rdc8 {[%clk 0:01:08.2]} 29.
Qa2 {[%clk 0:00:04]} 29... Qa3 {[%clk 0:01:03.2]} 30. Qxa3 {[%clk 0:00:03.4]}
30... Bxa3 {[%clk 0:01:02.4]} 31. Ra1 {[%clk 0:00:03.8]} 31... Bb4 {[%clk
0:01:02.3]} 32. Rac1 {[%clk 0:00:03.9]} 32... Bxa4 {[%clk 0:01:01.1]} 33. Nxa4
{[%clk 0:00:03.5]} 33... Rxc2 {[%clk 0:01:01.3]} 34. Rxc2 {[%clk 0:00:03.9]}
34... Rxc2 {[%clk 0:01:01.3]} 0-1

[Event "*** Titled Tuesday Blitz"]
[Site "Chess.com"]
[Date "2020.05.26"]
[Round "2"]
[White "Alexander_Donchenko"]
[Black "Koalaskakistis"]
[Result "1-0"]
[WhiteElo "2683"]
[BlackElo "2456"]
[TimeControl "180+1"]
[EndTime "10:16:58 PDT"]
[Termination "Alexander_Donchenko won by resignation"]

1. e4 {[%clk 0:03:00.9]} 1... c5 {[%clk 0:02:58.2]} 2. Nf3 {[%clk 0:03:00.7]}
2... Nc6 {[%clk 0:02:58.5]} 3. Bb5 {[%clk 0:02:59.6]} 3... Nf6 {[%clk
0:02:58.8]} 4. Qe2 {[%clk 0:02:58.3]} 4... Qc7 {[%clk 0:02:55.3]} 5. O-O {[%clk
0:02:57.4]} 5... a6 {[%clk 0:02:55.4]} 6. Bxc6 {[%clk 0:02:56.9]} 6... dxc6
{[%clk 0:02:56.3]} 7. d3 {[%clk 0:02:55.5]} 7... e5 {[%clk 0:02:56.1]} 8. Nc3
{[%clk 0:02:49.5]} 8... h6 {[%clk 0:02:55.6]} 9. h3 {[%clk 0:02:48.2]} 9... Be6
{[%clk 0:02:55]} 10. Be3 {[%clk 0:02:46.5]} 10... Nd7 {[%clk 0:02:55]} 11. a4
{[%clk 0:02:44.6]} 11... a5 {[%clk 0:02:52.4]} 12. Nd2 {[%clk 0:02:40.9]} 12...
g5 {[%clk 0:02:50.1]} 13. Nc4 {[%clk 0:02:36.2]} 13... Be7 {[%clk 0:02:47.5]}
14. Bd2 {[%clk 0:02:33.4]} 14... b6 {[%clk 0:02:38.3]} 15. Ne3 {[%clk
0:02:30.5]} 15... O-O-O {[%clk 0:02:33.4]} 16. Nf5 {[%clk 0:02:28.2]} 16... Bf6
{[%clk 0:02:32.3]} 17. Nd1 {[%clk 0:02:20.8]} 17... h5 {[%clk 0:02:31]} 18. Nde3
{[%clk 0:02:19.7]} 18... Rdg8 {[%clk 0:02:25.8]} 19. g3 {[%clk 0:02:15.3]} 19...
Nf8 {[%clk 0:02:14.1]} 20. c3 {[%clk 0:02:12.6]} 20... h4 {[%clk 0:02:07.2]} 21.
Kg2 {[%clk 0:02:03.6]} 21... Ng6 {[%clk 0:01:59.4]} 22. b4 {[%clk 0:02:02.3]}
22... cxb4 {[%clk 0:00:45.4]} 23. cxb4 {[%clk 0:02:03.2]} 23... axb4 {[%clk
0:00:46.3]} 24. Bxb4 {[%clk 0:02:01.3]} 24... Qd7 {[%clk 0:00:28.2]} 25. a5
{[%clk 0:01:57.1]} 25... b5 {[%clk 0:00:28.3]} 26. a6 {[%clk 0:01:50.3]} 26...
Kb8 {[%clk 0:00:28.1]} 27. Rfc1 {[%clk 0:01:20.6]} 27... Bd8 {[%clk 0:00:17.4]}
28. a7+ {[%clk 0:01:16.8]} 28... Ka8 {[%clk 0:00:17.4]} 29. Ra6 {[%clk
0:01:16.1]} 29... Ne7 {[%clk 0:00:12.9]} 30. Bxe7 {[%clk 0:01:08.1]} 30... Bxe7
{[%clk 0:00:12]} 31. Raxc6 {[%clk 0:01:08.7]} 31... hxg3 {[%clk 0:00:11.7]} 32.
Rc7 {[%clk 0:01:03.7]} 32... Bxf5 {[%clk 0:00:07.2]} 33. Nxf5 {[%clk 0:00:58.1]}
33... Qd8 {[%clk 0:00:07.4]} 34. Nxe7 {[%clk 0:00:56]} 34... gxf2 {[%clk
0:00:06.5]} 35. Rc8+ {[%clk 0:00:55.2]} 1-0

[Event "*** Titled Tuesday Blitz"]
[Site "Chess.com"]
[Date "2020.05.26"]
[Round "2"]
[White "Thipsay"]
[Black "DenLaz"]
[Result "1-0"]
[WhiteElo "2457"]
[BlackElo "2661"]
[TimeControl "180+1"]
[EndTime "10:16:59 PDT"]
[Termination "Thipsay won by resignation"]

1. e4 {[%clk 0:03:00.9]} 1... c5 {[%clk 0:02:56.4]} 2. Nf3 {[%clk 0:03:01]} 2...
e6 {[%clk 0:02:53.5]} 3. d4 {[%clk 0:03:00.9]} 3... cxd4 {[%clk 0:02:53.6]} 4.
Nxd4 {[%clk 0:03:01]} 4... a6 {[%clk 0:02:54.1]} 5. Nc3 {[%clk 0:03:00.9]} 5...
Nc6 {[%clk 0:02:51.8]} 6. Be2 {[%clk 0:03:00.8]} 6... Qc7 {[%clk 0:02:51]} 7.
O-O {[%clk 0:03:00.2]} 7... Nf6 {[%clk 0:02:51.2]} 8. Be3 {[%clk 0:02:59.8]}
8... Bb4 {[%clk 0:02:51.3]} 9. Na4 {[%clk 0:02:59.3]} 9... O-O {[%clk
0:02:40.2]} 10. Nxc6 {[%clk 0:02:55.3]} 10... bxc6 {[%clk 0:02:38.8]} 11. c4
{[%clk 0:02:54.1]} 11... Be7 {[%clk 0:02:27.8]} 12. Nc3 {[%clk 0:02:42.1]} 12...
c5 {[%clk 0:02:25.9]} 13. f4 {[%clk 0:02:41.6]} 13... d6 {[%clk 0:02:24]} 14.
Bf3 {[%clk 0:02:40.7]} 14... Bb7 {[%clk 0:02:22]} 15. Kh1 {[%clk 0:02:37.9]}
15... Nd7 {[%clk 0:02:20]} 16. Qc2 {[%clk 0:02:35.4]} 16... Bc6 {[%clk
0:02:19.1]} 17. Rad1 {[%clk 0:02:34.2]} 17... Rab8 {[%clk 0:02:18.1]} 18. b3
{[%clk 0:02:33.6]} 18... a5 {[%clk 0:02:17]} 19. Be2 {[%clk 0:02:29.9]} 19...
Nb6 {[%clk 0:02:01.7]} 20. a4 {[%clk 0:02:28.2]} 20... Nd7 {[%clk 0:01:57.3]}
21. Nb5 {[%clk 0:02:26.9]} 21... Bxb5 {[%clk 0:01:56.1]} 22. axb5 {[%clk
0:02:25.9]} 22... Nb6 {[%clk 0:01:53.9]} 23. Bd3 {[%clk 0:02:25.5]} 23... g6
{[%clk 0:01:50.9]} 24. f5 {[%clk 0:02:24.7]} 24... Bf6 {[%clk 0:01:49.9]} 25.
Bh6 {[%clk 0:02:23.5]} 25... Bg7 {[%clk 0:01:46.3]} 26. Bxg7 {[%clk 0:02:23.4]}
26... Kxg7 {[%clk 0:01:47.2]} 27. f6+ {[%clk 0:02:23.4]} 27... Kh8 {[%clk
0:01:45.7]} 28. Qd2 {[%clk 0:02:21.9]} 28... Rg8 {[%clk 0:01:44.1]} 29. Qg5
{[%clk 0:02:21.5]} 29... Nd7 {[%clk 0:01:38]} 30. Rf3 {[%clk 0:02:20.6]} 30...
Qd8 {[%clk 0:01:38.4]} 31. Rdf1 {[%clk 0:02:19.8]} 31... d5 {[%clk 0:01:24.5]}
32. exd5 {[%clk 0:02:18.1]} 32... exd5 {[%clk 0:01:23.6]} 33. Qxd5 {[%clk
0:02:18.1]} 33... Rb6 {[%clk 0:01:21.4]} 34. Qxf7 {[%clk 0:02:16.7]} 34... Ne5
{[%clk 0:01:19.3]} 35. Qa7 {[%clk 0:01:56.1]} 35... Nxf3 {[%clk 0:01:17.3]} 36.
f7 {[%clk 0:01:56.2]} 36... Rf8 {[%clk 0:01:12.4]} 37. Rxf3 {[%clk 0:01:55.9]}
37... Rf6 {[%clk 0:01:09.9]} 38. Rxf6 {[%clk 0:01:46.4]} 38... Qxf6 {[%clk
0:01:07.2]} 39. Qxc5 {[%clk 0:01:46.3]} 39... Rxf7 {[%clk 0:01:04.3]} 40. h3
{[%clk 0:01:46.1]} 40... Rd7 {[%clk 0:00:59.1]} 41. Be4 {[%clk 0:01:34]} 41...
Rd1+ {[%clk 0:00:56.9]} 42. Kh2 {[%clk 0:01:34]} 42... Qf4+ {[%clk 0:00:57.4]}
43. g3 {[%clk 0:01:34.1]} 43... Rd2+ {[%clk 0:00:49]} 44. Bg2 {[%clk 0:01:30.8]}
44... Qf6 {[%clk 0:00:49.6]} 45. Qe3 {[%clk 0:01:26]} 45... Rd8 {[%clk
0:00:44.8]} 46. b6 {[%clk 0:01:25.5]} 46... h5 {[%clk 0:00:28.8]} 47. c5 {[%clk
0:01:17.6]} 47... h4 {[%clk 0:00:26.1]} 48. Qh6+ {[%clk 0:01:17.4]} 48... Kg8
{[%clk 0:00:24.8]} 49. Qxh4 {[%clk 0:01:17.4]} 49... Qe5 {[%clk 0:00:20.8]} 50.
Qxd8+ {[%clk 0:01:16.9]} 1-0